[Event "NJSK 2024 C"]
[Site "Groningen, Netherlands"]
[Date "2024.05.01"]
[Round "7.4"]
[White "Grooten, Tommy"]
[Black "Zecha, Oscar"]
[Result "1-0"]
[TimeControl "90min/40moves + 30min + 30sec/move"]
[WhiteElo "2018"]
[BlackElo "1998"]

1. d4 {[%clk 01:30:59]} Nf6 {[%clk 01:30:55]} {[%emt 00:00:04]} 2. c4 {[%clk
01:31:26]} {[%emt 00:00:04]} e6 {[%clk 01:31:21]} {[%emt 00:00:04]} 3. Nc3
{[%clk 01:31:54]} {[%emt 00:00:02]} Bb4 {[%clk 01:31:47]} {[%emt 00:00:03]} 4.
f3 {[%clk 01:32:19]} {[%emt 00:00:06]} c5 {[%clk 01:32:13]} {[%emt 00:00:04]} 5.
d5 {[%clk 01:32:44]} {[%emt 00:00:05]} b5 {[%clk 01:32:40]} {[%emt 00:00:03]} 6.
e4 {[%clk 01:33:10]} {[%emt 00:00:05]} d6 {[%clk 01:33:07]} {[%emt 00:00:03]} 7.
a3 {[%clk 01:32:47]} {[%emt 00:00:52]} Ba5 {[%clk 01:33:14]} {[%emt 00:00:23]}
8. Bd2 {[%clk 01:31:39]} {[%emt 00:01:38]} bxc4 {[%clk 01:23:40]} {[%emt
00:10:04]} 9. Bxc4 {[%clk 01:31:39]} {[%emt 00:00:30]} O-O {[%clk 01:16:41]}
{[%emt 00:07:29]} 10. Nge2 {[%clk 01:29:25]} {[%emt 00:02:42]} Ba6 {[%clk
01:11:19]} {[%emt 00:05:54]} 11. b3 {[%clk 01:22:48]} {[%emt 00:07:07]} Nfd7
{[%clk 01:03:18]} {[%emt 00:08:32]} 12. O-O {[%clk 01:11:12]} {[%emt 00:12:05]}
Bxc4 {[%clk 00:54:09]} {[%emt 00:09:40]} 13. bxc4 {[%clk 01:11:16]} {[%emt
00:00:25]} Nb6 {[%clk 00:51:16]} {[%emt 00:03:23]} 14. Qb3 {[%clk 01:08:16]}
{[%emt 00:03:28]} N8d7 {[%clk 00:48:52]} {[%emt 00:02:57]} 15. Bf4 {[%clk
01:05:33]} {[%emt 00:03:13]} e5 {[%clk 00:48:12]} {[%emt 00:01:10]} 16. Be3
{[%clk 01:05:42]} {[%emt 00:00:20]} Rb8 {[%clk 00:48:14]} {[%emt 00:00:28]} 17.
Qa2 {[%clk 01:05:24]} {[%emt 00:00:48]} a6 {[%clk 00:43:46]} {[%emt 00:04:58]}
18. Rab1 {[%clk 00:59:44]} {[%emt 00:06:09]} Re8 {[%clk 00:36:08]} {[%emt
00:08:09]} 19. g3 {[%clk 00:52:07]} {[%emt 00:08:07]} Nf8 {[%clk 00:33:25]}
{[%emt 00:03:13]} 20. Bf2 {[%clk 00:45:02]} {[%emt 00:07:35]} Ng6 {[%clk
00:31:59]} {[%emt 00:01:56]} 21. Nd1 {[%clk 00:41:06]} {[%emt 00:04:25]} Qd7
{[%clk 00:29:59]} {[%emt 00:02:31]} 22. Ne3 {[%clk 00:39:59]} {[%emt 00:01:36]}
Qa4 {[%clk 00:25:32]} {[%emt 00:04:58]} 23. Rb2 {[%clk 00:38:22]} {[%emt
00:02:07]} h6 {[%clk 00:21:47]} {[%emt 00:04:14]} 24. Rfb1 {[%clk 00:37:23]}
{[%emt 00:01:30]} Qd7 {[%clk 00:14:38]} {[%emt 00:07:39]} 25. Be1 {[%clk
00:33:33]} {[%emt 00:04:20]} Bxe1 {[%clk 00:14:38]} {[%emt 00:00:30]} 26. Rxb6
{[%clk 00:33:36]} {[%emt 00:00:27]} Rxb6 {[%clk 00:13:20]} {[%emt 00:01:48]} 27.
Rxb6 {[%clk 00:33:59]} {[%emt 00:00:06]} Ne7 {[%clk 00:02:34]} {[%emt
00:11:17]} 28. Qb3 {[%clk 00:32:01]} {[%emt 00:02:28]} f5 {[%clk 00:02:09]}
{[%emt 00:00:55]} 29. exf5 {[%clk 00:25:23]} {[%emt 00:07:08]} Nxf5 {[%clk
00:00:53]} {[%emt 00:01:46]} 30. Rb7 {[%clk 00:21:08]} {[%emt 00:04:44]} Qc8
{[%clk 00:01:16]} {[%emt 00:00:07]} 31. Nxf5 {[%clk 00:21:11]} {[%emt
00:00:26]} Qxf5 {[%clk 00:01:44]} {[%emt 00:00:01]} 32. Qb1 {[%clk 00:21:20]}
{[%emt 00:00:22]} Qxb1 {[%clk 00:01:01]} {[%emt 00:01:14]} 33. Rxb1 {[%clk
00:21:45]} {[%emt 00:00:03]} Ba5 {[%clk 00:01:16]} {[%emt 00:00:16]} 34. Rb3
{[%emt 00:01:28]} Kf7 {[%clk 00:00:36]} {[%emt 00:01:07]} 35. Kf2 {[%clk
00:19:19]} {[%emt 00:02:01]} g6 {[%clk 00:00:33]} {[%emt 00:00:34]} 36. Ke3
{[%clk 00:19:05]} {[%emt 00:00:42]} Re7 {[%clk 00:00:41]} {[%emt 00:00:23]} 37.
g4 {[%clk 00:19:20]} {[%emt 00:00:15]} Rd7 {[%clk 00:00:39]} {[%emt 00:00:33]}
38. Ng3 {[%clk 00:19:38]} {[%emt 00:00:11]} Ke7 {[%clk 00:00:45]} {[%emt
00:00:25]} 39. Rb8 {[%clk 00:18:52]} {[%emt 00:01:15]} Rd8 {[%clk 00:01:02]}
{[%emt 00:00:13]} 40. Rxd8 {[%clk 00:18:56]} {[%emt 00:00:26]} Kxd8 {[%clk
00:00:34]} {[%emt 00:00:58]} 41. Ke2 {[%clk 00:17:45]} {[%emt 00:01:40]} Ke7
{[%clk 00:00:40]} {[%emt 00:00:24]} 42. h4 {[%clk 00:18:03]} {[%emt 00:00:13]}
Bc3 {[%clk 00:00:33]} {[%emt 00:00:35]} 43. h5 {[%clk 00:18:20]} {[%emt
00:00:15]} gxh5 {[%clk 00:00:36]} {[%emt 00:00:28]} 44. gxh5 {[%clk 00:18:23]}
{[%emt 00:00:26]} Bb2 {[%clk 00:00:35]} {[%emt 00:00:31]} 45. Nf5+ {[%clk
00:17:46]} {[%emt 00:01:06]} Kf6 {[%clk 00:00:46]} {[%emt 00:00:20]} 46. Nxd6
{[%clk 00:18:04]} {[%emt 00:00:11]} Bxa3 {[%clk 00:01:09]} {[%emt 00:00:08]} 47.
Ne4+ {[%clk 00:18:16]} {[%emt 00:00:17]} Kf5 {[%clk 00:00:43]} {[%emt
00:00:57]} 48. Kd3 {[%clk 00:17:01]} {[%emt 00:01:45]} a5 {[%clk 00:00:34]}
{[%emt 00:00:40]} 49. Nc3 {[%clk 00:17:02]} {[%emt 00:00:28]} Bb4 {[%clk
00:00:33]} {[%emt 00:00:31]} 50. Na4 {[%clk 00:17:25]} {[%emt 00:00:07]} Ba3
{[%clk 00:00:33]} {[%emt 00:00:30]} 51. Kc2 {[%clk 00:16:17]} {[%emt 00:01:38]}
Kf6 {[%clk 00:00:34]} {[%emt 00:00:30]} 52. Kb3 {[%clk 00:16:15]} {[%emt
00:00:31]} Bb4 {[%clk 00:01:00]} {[%emt 00:00:04]} 53. Nb2 {[%clk 00:16:19]}
{[%emt 00:00:25]} Ke7 {[%clk 00:00:33]} {[%emt 00:00:59]} 54. Nd3 {[%clk
00:16:38]} {[%emt 00:00:10]} Kd6 {[%clk 00:00:51]} {[%emt 00:00:11]} 55. Nf2
{[%clk 00:16:59]} {[%emt 00:00:10]} Kd7 {[%clk 00:00:45]} {[%emt 00:00:36]} 56.
Ka4 {[%clk 00:16:50]} {[%emt 00:00:38]} Kd6 {[%clk 00:00:44]} {[%emt 00:00:32]}
57. Ne4+ {[%clk 00:17:13]} {[%emt 00:00:07]} Kd7 {[%clk 00:00:33]} {[%emt
00:00:42]} 58. Kb5 {[%clk 00:17:27]} {[%emt 00:00:15]} Be1 {[%clk 00:00:34]}
{[%emt 00:00:29]} 59. Nxc5+ {[%clk 00:17:45]} {[%emt 00:00:11]} Kc7 {[%clk
00:00:53]} {[%emt 00:00:10]} 60. Ne4 {[%clk 00:18:06]} {[%emt 00:00:11]} Kd7
{[%clk 00:00:40]} {[%emt 00:00:43]} 61. c5 {[%clk 00:18:25]} {[%emt 00:00:11]}
Kc7 {[%clk 00:01:02]} {[%emt 00:00:08]} 62. d6+ {[%clk 00:18:50]} {[%emt
00:00:06]} Kd7 {[%clk 00:00:40]} {[%emt 00:00:51]} 63. Nf6+ {[%clk 00:19:09]}
{[%emt 00:00:11]} Kd8 {[%clk 00:00:53]} {[%emt 00:00:17]} 64. c6 {[%clk
00:19:33]} {[%emt 00:00:06]} Bb4 {[%clk 00:00:36]} {[%emt 00:00:47]} 65. c7+
{[%clk 00:19:40]} {[%emt 00:00:24]} Kc8 {[%clk 00:01:03]} {[%emt 00:00:02]} 66.
Kc6 {[%clk 00:19:54]} {[%emt 00:00:16]} 1-0

[Event "NJSK 2024 C"]
[Site "Groningen, Netherlands"]
[Date "2024.05.01"]
[Round "7.5"]
[White "Terlouw, Wouter"]
[Black "Ngangbam, Chingthang"]
[Result "1-0"]
[TimeControl "90min/40moves + 30min + 30sec/move"]
[WhiteElo "1961"]
[BlackElo "1713"]

1. d4 {[%clk 01:30:58]} {[%emt 00:00:01]} Nf6 {[%clk 01:30:41]} {[%emt
00:00:20]} 2. Bg5 {[%clk 01:31:09]} {[%emt 00:00:19]} d5 {[%clk 01:30:03]}
{[%emt 00:01:07]} 3. Bxf6 {[%clk 01:31:28]} {[%emt 00:00:11]} exf6 {[%clk
01:30:06]} {[%emt 00:00:27]} 4. e3 {[%clk 01:31:50]} {[%emt 00:00:08]} Bd6
{[%clk 01:29:51]} {[%emt 00:00:45]} 5. Bd3 {[%clk 01:31:52]} {[%emt 00:00:29]}
c6 {[%clk 01:27:42]} {[%emt 00:02:39]} 6. Nd2 {[%clk 01:31:50]} {[%emt
00:00:32]} O-O {[%clk 01:27:13]} {[%emt 00:00:58]} 7. Qf3 {[%clk 01:30:51]}
{[%emt 00:01:29]} Re8 {[%clk 01:25:36]} {[%emt 00:02:08]} 8. Ne2 {[%clk
01:31:14]} {[%emt 00:00:07]} Nd7 {[%clk 01:25:09]} {[%emt 00:00:56]} 9. g4
{[%clk 01:29:42]} {[%emt 00:02:02]} Nf8 {[%clk 01:21:19]} {[%emt 00:04:20]} 10.
h4 {[%clk 01:27:53]} {[%emt 00:02:20]} Be6 {[%clk 01:10:13]} {[%emt 00:11:35]}
11. O-O-O {[%clk 01:26:27]} {[%emt 00:01:56]} Qa5 {[%clk 01:09:07]} {[%emt
00:01:35]} 12. Kb1 {[%clk 01:26:36]} {[%emt 00:00:22]} b5 {[%clk 01:06:04]}
{[%emt 00:03:32]} 13. g5 {[%clk 01:23:39]} {[%emt 00:03:28]} Be7 {[%clk
00:58:20]} {[%emt 00:08:14]} 14. Nb3 {[%clk 01:21:58]} {[%emt 00:02:11]} Qc7
{[%clk 00:58:13]} {[%emt 00:00:36]} 15. Rdg1 {[%clk 01:22:16]} {[%emt
00:00:13]} fxg5 {[%clk 00:52:10]} {[%emt 00:06:33]} 16. hxg5 {[%clk 01:21:42]}
{[%emt 00:01:04]} g6 {[%clk 00:51:56]} {[%emt 00:00:44]} 17. Nf4 {[%clk
01:16:37]} {[%emt 00:05:35]} a5 {[%clk 00:50:26]} {[%emt 00:01:59]} 18. Rh6
{[%clk 01:13:05]} {[%emt 00:04:03]} b4 {[%clk 00:46:59]} {[%emt 00:03:57]} 19.
Qg3 {[%clk 01:11:17]} {[%emt 00:02:19]} Bd6 {[%clk 00:40:09]} {[%emt 00:07:19]}
20. Qh4 {[%clk 01:10:36]} {[%emt 00:01:12]} a4 {[%clk 00:38:31]} {[%emt
00:02:08]} 21. Nc5 {[%clk 01:08:11]} {[%emt 00:02:54]} Bxc5 {[%clk 00:38:08]}
{[%emt 00:00:53]} 22. dxc5 {[%clk 01:08:27]} {[%emt 00:00:14]} a3 {[%clk
00:37:41]} {[%emt 00:00:57]} 23. Ne2 {[%clk 01:03:28]} {[%emt 00:05:30]} axb2
{[%clk 00:37:12]} {[%emt 00:00:59]} 24. Kxb2 {[%clk 01:01:33]} {[%emt
00:02:25]} Qa5 {[%clk 00:24:38]} {[%emt 00:13:03]} 25. Kc1 {[%clk 01:01:25]}
{[%emt 00:00:38]} Qxa2 {[%clk 00:24:15]} {[%emt 00:00:53]} 26. Qxb4 {[%clk
01:00:47]} {[%emt 00:01:09]} Reb8 {[%clk 00:23:51]} {[%emt 00:00:52]} 27. Qc3
{[%emt 00:02:41]} Bc8 {[%clk 00:19:43]} {[%emt 00:02:35]} 28. Kd2 {[%clk
01:00:24]} {[%emt 00:00:46]} Ra3 {[%clk 00:19:25]} {[%emt 00:00:47]} 29. Qe5
{[%clk 00:59:03]} {[%emt 00:01:50]} Rb2 {[%clk 00:19:12]} {[%emt 00:00:44]} 30.
Rc1 {[%clk 00:57:22]} {[%emt 00:02:12]} Rxd3+ {[%clk 00:08:27]} {[%emt
00:11:15]} 31. Kxd3 {[%clk 00:56:46]} {[%emt 00:01:07]} Bf5+ {[%clk 00:08:04]}
{[%emt 00:00:51]} 32. e4 {[%clk 00:55:40]} {[%emt 00:01:37]} Bxe4+ {[%clk
00:07:21]} {[%emt 00:01:12]} 33. Ke3 {[%clk 00:56:01]} {[%emt 00:00:09]} Rb4
{[%clk 00:03:11]} {[%emt 00:04:41]} 34. Qa1 {[%clk 00:50:57]} {[%emt 00:05:34]}
Qxa1 {[%clk 00:01:10]} {[%emt 00:02:30]} 35. Rxa1 {[%clk 00:51:22]} {[%emt
00:00:06]} Bxc2 {[%clk 00:01:26]} {[%emt 00:00:13]} 36. Nd4 {[%clk 00:51:32]}
{[%emt 00:00:20]} Ba4 {[%clk 00:00:32]} {[%emt 00:01:25]} 37. f4 {[%clk
00:50:07]} {[%emt 00:01:55]} Bb5 {[%clk 00:00:43]} {[%emt 00:00:19]} 38. f5
{[%clk 00:49:03]} {[%emt 00:01:33]} Rc4 {[%clk 00:00:52]} {[%emt 00:00:22]} 39.
f6 {[%clk 00:48:15]} {[%emt 00:01:18]} Rc3+ {[%clk 00:01:06]} {[%emt 00:00:16]}
40. Kf4 {[%clk 00:48:19]} {[%emt 00:00:18]} Rxc5 {[%clk 00:01:16]} {[%emt
00:00:29]} 41. Ra8 {[%clk 00:48:32]} {[%emt 00:00:16]} Rc4 {[%clk 00:00:37]}
{[%emt 00:01:08]} 42. Ke5 {[%clk 00:48:53]} {[%emt 00:00:09]} Ra4 {[%clk
00:00:37]} {[%emt 00:00:30]} 43. Rb8 {[%clk 00:49:02]} {[%emt 00:00:20]} Ra3
{[%clk 00:00:45]} {[%emt 00:00:20]} 44. Rh1 {[%clk 00:48:35]} {[%emt 00:00:56]}
Re3+ {[%clk 00:00:46]} {[%emt 00:00:34]} 45. Kd6 {[%clk 00:48:49]} {[%emt
00:00:15]} Rg3 {[%clk 00:00:33]} {[%emt 00:00:44]} 46. Ra1 {[%clk 00:49:07]}
{[%emt 00:00:12]} Rxg5 {[%clk 00:00:37]} {[%emt 00:00:26]} 47. Rxf8+ {[%clk
00:49:30]} {[%emt 00:00:08]} Kxf8 {[%clk 00:01:00]} {[%emt 00:00:07]} 48. Ra8#
{[%clk 00:49:54]} {[%emt 00:00:06]} 1-0

[Event "NJSK 2024 C"]
[Site "Groningen, Netherlands"]
[Date "2024.05.01"]
[Round "7.6"]
[White "Darie, Aden"]
[Black "De Jong, Lode"]
[Result "1/2-1/2"]
[TimeControl "90min/40moves + 30min + 30sec/move"]
[WhiteElo "1923"]
[BlackElo "1587"]

1. e4 {[%clk 01:30:57]} {[%emt 00:00:02]} d6 {[%clk 01:30:57]} {[%emt
00:00:04]} 2. d4 {[%clk 01:31:22]} {[%emt 00:00:04]} Nf6 {[%clk 01:31:25]}
{[%emt 00:00:03]} 3. Nc3 {[%clk 01:31:47]} {[%emt 00:00:05]} g6 {[%clk
01:31:52]} {[%emt 00:00:03]} 4. f4 {[%clk 01:32:11]} {[%emt 00:00:06]} Bg7
{[%clk 01:32:19]} {[%emt 00:00:04]} 5. Nf3 {[%clk 01:32:34]} {[%emt 00:00:07]}
c5 {[%clk 01:32:45]} {[%emt 00:00:03]} 6. dxc5 {[%clk 01:32:02]} {[%emt
00:01:02]} Qa5 {[%clk 01:33:10]} {[%emt 00:00:05]} 7. Bd3 {[%clk 01:32:23]}
{[%emt 00:00:08]} Qxc5 {[%clk 01:33:28]} {[%emt 00:00:13]} 8. Qe2 {[%clk
01:31:59]} {[%emt 00:00:53]} O-O {[%clk 01:33:21]} {[%emt 00:00:37]} 9. Be3
{[%clk 01:31:10]} {[%emt 00:01:20]} Qa5 {[%clk 01:33:07]} {[%emt 00:00:45]} 10.
O-O {[%clk 01:30:44]} {[%emt 00:00:54]} Bg4 {[%clk 01:32:01]} {[%emt 00:01:37]}
11. Rae1 {[%clk 01:27:04]} {[%emt 00:04:09]} Nc6 {[%clk 01:32:22]} {[%emt
00:00:10]} 12. Kh1 {[%clk 01:25:22]} {[%emt 00:02:12]} Nd7 {[%clk 01:23:32]}
{[%emt 00:09:20]} 13. h3 {[%clk 01:21:39]} {[%emt 00:04:13]} Bxf3 {[%clk
01:23:48]} {[%emt 00:00:14]} 14. Qxf3 {[%clk 01:17:55]} {[%emt 00:04:13]} Nc5
{[%clk 01:22:37]} {[%emt 00:01:42]} 15. Bd2 {[%clk 01:15:59]} {[%emt 00:02:25]}
Nxd3 {[%clk 01:18:37]} {[%emt 00:04:32]} 16. cxd3 {[%clk 01:15:37]} {[%emt
00:00:51]} Rac8 {[%clk 01:14:08]} {[%emt 00:04:59]} 17. f5 {[%clk 01:12:33]}
{[%emt 00:03:34]} Qa6 {[%clk 01:09:02]} {[%emt 00:05:37]} 18. Nd5 {[%clk
01:03:13]} {[%emt 00:09:50]} Qxa2 {[%clk 00:56:49]} {[%emt 00:12:43]} 19. f6
{[%clk 01:02:19]} {[%emt 00:01:24]} exf6 {[%clk 00:56:24]} {[%emt 00:00:55]} 20.
Nxf6+ {[%clk 01:02:05]} {[%emt 00:00:44]} Kh8 {[%clk 00:56:44]} {[%emt
00:00:10]} 21. Bc3 {[%clk 01:02:01]} {[%emt 00:00:34]} Ne5 {[%clk 00:51:29]}
{[%emt 00:05:44]} 22. Qg3 {[%clk 01:00:47]} {[%emt 00:01:44]} Qe6 {[%clk
00:49:43]} {[%emt 00:02:17]} 23. Qh4 {[%clk 00:58:38]} {[%emt 00:02:39]} Bxf6
{[%clk 00:49:22]} {[%emt 00:00:51]} 24. Rxf6 {[%clk 00:55:26]} {[%emt
00:03:42]} Qe7 {[%clk 00:49:26]} {[%emt 00:00:25]} 25. Ref1 {[%clk 00:54:07]}
{[%emt 00:01:49]} Rxc3 {[%clk 00:46:38]} {[%emt 00:03:19]} 26. bxc3 {[%clk
00:53:47]} {[%emt 00:00:49]} Nd7 {[%clk 00:47:01]} {[%emt 00:00:07]} 1/2-1/2

[Event "NJSK 2024 C"]
[Site "Groningen, Netherlands"]
[Date "2024.05.01"]
[Round "7.7"]
[White "Roorda, Cas"]
[Black "Ambrona Navarro, Himar"]
[Result "1-0"]
[TimeControl "90min/40moves + 30min + 30sec/move"]
[WhiteElo "1828"]
[BlackElo "1963"]

1. e4 {[%clk 01:30:57]} {[%emt 00:00:02]} c5 {[%clk 01:30:40]} {[%emt
00:00:12]} 2. Nf3 {[%clk 01:31:24]} {[%emt 00:00:12]} d6 {[%clk 01:31:01]}
{[%emt 00:00:08]} 3. d4 {[%clk 01:31:51]} {[%emt 00:00:04]} cxd4 {[%clk
01:31:24]} {[%emt 00:00:07]} 4. Nxd4 {[%clk 01:32:18]} {[%emt 00:00:03]} Nf6
{[%clk 01:31:46]} {[%emt 00:00:07]} 5. Nc3 {[%clk 01:32:46]} {[%emt 00:00:03]}
g6 {[%clk 01:32:08]} {[%emt 00:00:07]} 6. Be3 {[%clk 01:33:07]} {[%emt
00:00:09]} a6 {[%clk 01:32:29]} {[%emt 00:00:09]} 7. f3 {[%emt 00:00:37]} h5
{[%emt 00:00:07]} 8. Qd2 {[%clk 01:26:47]} {[%emt 00:06:06]} Bg7 {[%clk
01:32:28]} {[%emt 00:00:31]} 9. a4 {[%clk 01:24:39]} {[%emt 00:02:39]} b6
{[%clk 01:30:36]} {[%emt 00:02:20]} 10. Be2 {[%clk 01:16:50]} {[%emt 00:08:20]}
Bb7 {[%clk 01:28:54]} {[%emt 00:02:12]} 11. O-O {[%clk 01:15:28]} {[%emt
00:01:52]} Nbd7 {[%clk 01:25:20]} {[%emt 00:04:03]} 12. Rfd1 {[%clk 01:02:41]}
{[%emt 00:13:18]} Rc8 {[%clk 01:21:54]} {[%emt 00:03:55]} 13. Qe1 {[%clk
00:58:44]} {[%emt 00:04:28]} O-O {[%clk 01:17:45]} {[%emt 00:04:37]} 14. Qf1
{[%clk 00:56:40]} {[%emt 00:02:36]} Nc5 {[%clk 01:13:41]} {[%emt 00:04:32]} 15.
e5 {[%clk 00:52:31]} {[%emt 00:04:41]} Ne8 {[%clk 01:11:13]} {[%emt 00:02:56]}
16. e6 {[%clk 00:34:32]} {[%emt 00:18:30]} fxe6 {[%clk 01:04:29]} {[%emt
00:07:12]} 17. b4 {[%clk 00:32:06]} {[%emt 00:02:59]} e5 {[%clk 01:01:31]}
{[%emt 00:03:26]} 18. Bc4+ {[%clk 00:30:24]} {[%emt 00:02:14]} Kh7 {[%clk
00:58:58]} {[%emt 00:03:00]} 19. bxc5 {[%clk 00:27:55]} {[%emt 00:03:03]} exd4
{[%clk 00:57:39]} {[%emt 00:01:48]} 20. Bxd4 {[%clk 00:26:45]} {[%emt
00:01:40]} Bxd4+ {[%clk 00:56:48]} 21. Rxd4 {[%clk 00:27:14]} {[%emt 00:01:22]}
Rxc5 {[%clk 00:56:16]} {[%emt 00:01:02]} 22. Ne4 {[%clk 00:21:33]} {[%emt
00:06:10]} Bxe4 {[%clk 00:53:21]} {[%emt 00:03:25]} 23. Rxe4 {[%clk 00:22:01]}
{[%emt 00:00:02]} d5 {[%clk 00:49:52]} {[%emt 00:03:58]} 24. Rd1 {[%clk
00:21:55]} {[%emt 00:00:38]} Nf6 {[%clk 00:32:32]} {[%emt 00:17:48]} 25. Red4
{[%clk 00:21:20]} {[%emt 00:01:06]} e5 {[%clk 00:31:49]} {[%emt 00:01:12]} 26.
R4d2 {[%clk 00:20:11]} {[%emt 00:01:41]} b5 {[%clk 00:30:15]} {[%emt 00:02:04]}
27. Bb3 {[%clk 00:18:06]} {[%emt 00:02:34]} bxa4 {[%clk 00:29:55]} {[%emt
00:00:50]} 28. Bxa4 {[%clk 00:16:44]} {[%emt 00:01:53]} Ne4 {[%clk 00:29:19]}
{[%emt 00:01:05]} 29. Rd3 {[%clk 00:15:14]} {[%emt 00:02:01]} Ra5 {[%clk
00:24:07]} {[%emt 00:05:39]} 30. Qe2 {[%clk 00:12:25]} {[%emt 00:03:21]} Qb6+
{[%clk 00:20:56]} {[%emt 00:03:40]} 31. Qe3 {[%clk 00:12:22]} {[%emt 00:00:34]}
Qxe3+ {[%clk 00:21:14]} {[%emt 00:00:12]} 32. Rxe3 {[%clk 00:12:49]} {[%emt
00:00:03]} Rxa4 {[%clk 00:21:13]} {[%emt 00:00:31]} 33. fxe4 {[%clk 00:13:14]}
{[%emt 00:00:05]} d4 {[%clk 00:21:38]} {[%emt 00:00:05]} 34. Rb3 {[%clk
00:10:50]} {[%emt 00:02:54]} Rc8 {[%clk 00:21:07]} {[%emt 00:00:58]} 35. Rb7+
{[%clk 00:09:47]} {[%emt 00:01:37]} Kh6 {[%clk 00:20:50]} {[%emt 00:00:45]} 36.
h4 {[%clk 00:07:51]} {[%emt 00:02:27]} Rxc2 {[%clk 00:19:40]} {[%emt 00:01:39]}
37. Rf1 {[%clk 00:08:17]} {[%emt 00:00:04]} Rb4 {[%clk 00:11:13]} {[%emt
00:08:57]} 38. Rxb4 {[%clk 00:08:36]} {[%emt 00:00:12]} Re2 {[%clk 00:11:39]}
{[%emt 00:00:04]} 39. Rb7 {[%clk 00:07:01]} {[%emt 00:02:05]} Rxe4 {[%clk
00:11:52]} {[%emt 00:00:17]} 40. g3 {[%clk 00:07:25]} {[%emt 00:00:07]} d3
{[%clk 00:09:06]} {[%emt 00:03:15]} 41. Rff7 {[%clk 00:07:07]} {[%emt
00:00:49]} d2 {[%clk 00:09:08]} {[%emt 00:00:28]} 42. Rh7# {[%clk 00:07:02]}
{[%emt 00:00:04]} 1-0